bitfinex/quotes_BTCUSD_20240901
["timestamp","ask_amount","ask_price","bid_price","bid_amount"]
[1725231168709,0.184,57842.0,57837.0,0.008998]
[1725231168958,0.216418,57847.0,57837.0,0.008998]
[1725231168959,0.000818,57847.0,57846.0,0.518617]
[1725231169171,0.000818,57847.0,57846.0,0.864362]
[1725231169412,0.000818,57847.0,57846.0,1.210107]
[1725231169647,0.000818,57847.0,57846.0,0.864362]
[1725231170078,0.000818,57847.0,57846.0,0.518617]
[1725231170287,0.000818,57847.0,57846.0,0.864362]
[1725231171412,0.000818,57847.0,57846.0,0.172872]
[1725231172523,0.02794074,57847.0,57846.0,0.172872]
[1725231172725,0.04401593,57847.0,57846.0,0.172872]
[1725231173595,0.04401593,57847.0,57843.0,0.345758]
[1725231173596,0.04401593,57847.0,57845.0,0.172874]
[1725231174035,0.02794074,57847.0,57845.0,0.172874]
[1725231174247,0.02794074,57847.0,57842.0,0.172882]
[1725231174518,0.184,57846.0,57843.0,0.17288]
[1725231174720,0.184,57846.0,57844.0,0.172876]
[1725231174956,0.184,57846.0,57837.0,0.008998]
[1725231174957,0.07600882,57845.0,57837.0,0.008998]
[1725231175165,0.18787464,57847.0,57837.0,0.008998]
[1725231175166,0.1599339,57839.0,57837.0,0.008998]
[1725231175373,0.172892,57840.0,57837.0,0.008998]
[1725231175574,0.172887,57841.0,57837.0,0.008998]
[1725231175864,0.05948307,57842.0,57838.0,0.172894]
[1725231176039,0.172885,57842.0,57837.0,0.008998]
[1725231176689,0.172885,57842.0,57837.0,0.181894]
[1725231177122,0.172891,57840.0,57837.0,0.008998]
[1725231177356,0.172894,57839.0,57837.0,0.008998]
[1725231177596,0.172892,57840.0,57837.0,0.008998]
[1725231177819,0.172894,57839.0,57837.0,0.008998]
[1725231178063,0.172896,57838.0,57837.0,0.008998]
[1725231178293,0.172894,57839.0,57837.0,0.008998]
[1725231178531,0.702689,57838.0,57837.0,0.008998]
[1725231181160,0.71865446,57838.0,57837.0,0.008998]
[1725231182288,1.06444746,57838.0,57837.0,0.008998]
[1725231182513,1.41024046,57838.0,57837.0,0.008998]
[1725231182758,1.82015187,57838.0,57837.0,0.008998]
[1725231183010,2.27804817,57838.0,57837.0,0.008998]
[1725231183256,1.94919817,57838.0,57837.0,0.008998]
[1725231183522,1.77367608,57838.0,57837.0,0.008998]
[1725231183948,1.78643979,57838.0,57837.0,0.008998]
[1725231184164,1.76635103,57838.0,57837.0,0.008998]
[1725231184624,1.75358501,57838.0,57837.0,0.008998]
[1725231186202,1.709775,57838.0,57837.0,0.008998]
[1725231186419,1.89428042,57838.0,57837.0,0.008998]
[1725231186866,1.90704344,57838.0,57837.0,0.008998]
[1725231187581,1.90704344,57838.0,57814.0,0.008998]
[1725231187582,0.002,57829.0,57814.0,0.008998]
[1725231187807,0.3373339,57815.0,57814.0,0.008998]
[1725231188919,0.36003648,57815.0,57814.0,0.008998]
[1725231189340,0.70596648,57815.0,57814.0,0.008998]
[1725231189550,1.05189648,57815.0,57814.0,0.008998]
[1725231189766,1.64243803,57815.0,57814.0,0.008998]
[1725231189995,1.41377428,57815.0,57814.0,0.008998]
[1725231190220,1.63957428,57815.0,57814.0,0.008998]
[1725231190471,1.63957428,57815.0,57808.0,0.008998]
[1725231190472,0.172983,57809.0,57808.0,0.008998]
[1725231190700,1.8370449,57809.0,57808.0,0.008998]
[1725231190916,2.05166444,57809.0,57808.0,0.008998]
[1725231191181,1.79614424,57809.0,57808.0,0.008998]
[1725231191399,1.96892634,57809.0,57808.0,0.008998]
[1725231191630,1.96892634,57809.0,57779.0,0.008998]
[1725231191631,0.51912,57790.0,57779.0,0.008998]
[1725231191876,0.51912,57790.0,57779.0,0.51440586]
[1725231191877,1.80980637,57790.0,57779.0,0.51440586]
[1725231192111,1.89700105,57790.0,57779.0,0.51440586]
[1725231192349,0.05076267,57803.0,57779.0,0.51440586]
[1725231192350,0.1713,57800.0,57789.0,0.178998]
[1725231192580,0.0271505,57793.0,57789.0,0.178998]
[1725231193000,0.0271505,57793.0,57790.0,0.173038]
[1725231193213,0.0271505,57793.0,57789.0,0.178998]
[1725231193430,0.2001825,57793.0,57789.0,0.178998]
[1725231193653,0.2001815,57793.0,57789.0,0.008998]
[1725231194118,0.0271505,57793.0,57789.0,0.008998]
[1725231194533,0.1599339,57797.0,57789.0,0.008998]
[1725231194534,0.173022,57796.0,57789.0,0.008998]
[1725231194739,0.173025,57795.0,57789.0,0.008998]
[1725231194976,0.173033,57793.0,57789.0,0.008998]
[1725231195217,0.1599339,57793.0,57789.0,0.008998]
[1725231195446,0.17304,57790.0,57789.0,0.008998]
[1725231195655,0.73232,57790.0,57789.0,0.008998]
[1725231195898,0.51912,57790.0,57789.0,0.008998]
[1725231196102,0.93310539,57790.0,57789.0,0.008998]
[1725231197216,1.44928539,57790.0,57789.0,0.008998]
[1725231197532,2.00800839,57790.0,57789.0,0.008998]
[1725231197716,1.77178539,57790.0,57789.0,0.008998]
[1725231197944,2.18999439,57790.0,57789.0,0.008998]
[1725231198184,2.04054839,57790.0,57789.0,0.008958]
[1725231198420,2.06354839,57790.0,57789.0,0.008958]
[1725231198648,1.76978539,57790.0,57789.0,0.008958]
[1725231198890,1.77178539,57790.0,57789.0,0.008958]
[1725231199135,1.79894061,57790.0,57789.0,0.008958]
[1725231200000,1.79694061,57790.0,57789.0,0.008958]
[1725231200435,2.22347005,57790.0,57789.0,0.008958]
[1725231200878,2.03594405,57790.0,57789.0,0.008958]
[1725231201541,1.81882505,57790.0,57789.0,0.008958]
[1725231201756,1.82082505,57790.0,57789.0,0.008958]
[1725231201999,1.96962105,57790.0,57789.0,0.008958]
[1725231202462,1.94246583,57790.0,57789.0,0.008958]
[1725231203378,1.94246583,57790.0,57785.0,0.008998]
[1725231203379,1.213364,57786.0,57785.0,0.008998]
[1725231203627,2.0238029,57786.0,57785.0,0.008998]
[1725231204021,1.43169,57780.0,57779.0,0.008998]
[1725231204239,1.0274039,57772.0,57771.0,0.0004]
[1725231204454,1.3715919,57772.0,57771.0,0.0004]
[1725231204684,0.6792159,57772.0,57771.0,0.0004]
[1725231204930,0.3330279,57772.0,57771.0,0.2327]
[1725231205222,0.401,57780.0,57771.0,0.2327]
[1725231205223,0.346129,57782.0,57772.0,0.1695]
[1725231205470,0.1599339,57775.0,57772.0,0.1695]
[1725231205729,0.1599339,57775.0,57773.0,0.01143343]
[1725231205730,0.519264,57774.0,57773.0,0.01143343]
[1725231205979,1.49973579,57774.0,57773.0,0.01143343]
[1725231206215,1.49973579,57774.0,57771.0,0.0004]
[1725231206216,0.86547,57772.0,57771.0,0.0004]
[1725231206483,1.394458,57772.0,57771.0,0.0004]
[1725231206941,1.45062527,57772.0,57771.0,0.0004]
[1725231207181,1.394458,57772.0,57771.0,0.0004]
[1725231207424,1.61917691,57772.0,57771.0,0.0004]
[1725231207885,1.84327691,57772.0,57771.0,0.0004]
[1725231208110,0.1599339,57755.0,57749.0,0.1837]
[1725231208365,0.3330799,57755.0,57750.0,0.182157]
[1725231208597,0.3330799,57755.0,57752.0,0.01159562]
[1725231208856,0.346228,57766.0,57752.0,0.01159562]
[1725231208857,0.1599339,57760.0,57752.0,0.01159562]
[1725231209091,0.346228,57766.0,57759.0,0.173132]
[1725231209092,0.173119,57764.0,57759.0,0.173132]
[1725231209525,0.0271629,57763.0,57760.0,0.01153382]
[1725231209991,0.0271629,57763.0,57758.0,0.173136]
[1725231209992,0.2002839,57763.0,57758.0,0.173136]
[1725231210222,0.2002839,57763.0,57761.0,0.0115261]
[1725231210577,0.2002839,57763.0,57758.0,0.173136]
[1725231210798,0.0271629,57763.0,57762.0,0.01151837]
[1725231211024,0.0271629,57763.0,57759.0,0.394932]
[1725231211248,0.0271629,57763.0,57762.0,0.01151837]
[1725231211463,0.2002849,57763.0,57759.0,0.2218]
[1725231211678,0.2002849,57763.0,57760.0,0.01153382]
[1725231211925,0.173126,57762.0,57759.0,0.2218]
[1725231212160,0.173126,57762.0,57761.0,0.0115261]
[1725231212395,0.173126,57762.0,57759.0,0.2218]
[1725231212396,0.23057918,57762.0,57760.0,0.01153382]
[1725231212611,0.23057918,57762.0,57761.0,0.0115261]
[1725231212836,0.40370318,57762.0,57761.0,0.0115261]
[1725231213063,0.40370318,57762.0,57759.0,0.2218]
[1725231213303,0.40370318,57762.0,57761.0,0.0114861]
[1725231213533,0.3330579,57762.0,57760.0,0.01153382]
[1725231213759,0.3330579,57762.0,57759.0,0.2218]
[1725231213986,0.3330579,57762.0,57761.0,0.0115161]
[1725231214251,0.3330579,57762.0,57760.0,0.01152382]
[1725231214252,0.173127,57761.0,57760.0,0.01152382]
[1725231214488,0.5061819,57762.0,57758.0,0.0008998]
[1725231214489,0.17313,57760.0,57758.0,0.0008998]
[1725231215770,0.173133,57759.0,57758.0,0.0008998]
[1725231215987,0.519399,57759.0,57758.0,0.0008998]
[1725231216220,0.1599339,57762.0,57751.0,0.173555]
[1725231216221,0.173149,57754.0,57751.0,0.0004]
[1725231216454,0.346273,57758.0,57751.0,0.0004]
[1725231216455,0.173143,57756.0,57751.0,0.0004]
[1725231216667,0.173143,57756.0,57751.0,0.173556]
[1725231216910,0.173143,57756.0,57752.0,0.173153]
[1725231217151,0.346235,57765.0,57755.0,0.173144]
[1725231217384,0.3848339,57766.0,57755.0,0.173144]
[1725231217385,0.173131,57760.0,57755.0,0.173144]
[1725231217822,0.346237,57764.0,57756.0,0.173141]
[1725231218079,0.346244,57763.0,57751.0,0.0004]
[1725231218292,0.173137,57758.0,57751.0,0.0004]
[1725231218511,0.173143,57756.0,57752.0,0.173153]
[1725231218736,0.173143,57756.0,57751.0,0.0004]
[1725231218737,0.173139,57758.0,57753.0,0.173151]
[1725231219197,0.0271637,57759.0,57754.0,0.226]
[1725231219459,0.0271637,57759.0,57755.0,0.173142]
[1725231219683,0.0271637,57759.0,57756.0,0.17314]
[1725231219921,0.0271637,57759.0,57757.0,0.173138]
[1725231220378,0.0271637,57759.0,57755.0,0.346288]
[1725231220620,0.0271637,57759.0,57757.0,0.173138]
[1725231220860,0.0271637,57759.0,57758.0,0.173136]
[1725231221085,0.0271637,57759.0,57758.0,0.18467527]
[1725231221816,0.0271637,57759.0,57758.0,0.53094727]
[1725231222074,0.0271637,57759.0,57758.0,0.18467527]
[1725231222321,0.0271637,57759.0,57758.0,0.53094727]
[1725231222797,0.0271637,57759.0,57758.0,0.18467527]
[1725231223084,0.0271637,57759.0,57758.0,0.01153927]
[1725231223527,0.2002967,57759.0,57758.0,0.01243907]
[1725231223996,0.0271637,57759.0,57758.0,0.01243907]
[1725231224678,0.173129,57761.0,57758.0,0.01243907]
[1725231224899,0.173131,57760.0,57758.0,0.01243907]
[1725231225988,0.3330599,57762.0,57758.0,0.01243907]
[1725231226200,0.40098999,57762.0,57758.0,0.01243907]
[1725231226408,0.22786399,57762.0,57758.0,0.01243907]
[1725231226636,0.24105609,57762.0,57758.0,0.01243907]
[1725231226866,0.173128,57761.0,57758.0,0.01243907]
[1725231227329,0.1599339,57766.0,57758.0,0.01243907]
[1725231227330,0.173115,57766.0,57761.0,0.173126]
[1725231227564,0.1599339,57770.0,57760.0,0.1716]
[1725231227565,0.18903841,57765.0,57760.0,0.1716]
[1725231227780,0.1599339,57770.0,57760.0,0.1716]
[1725231227781,0.22664484,57764.0,57760.0,0.344729]
[1725231228001,0.22664484,57764.0,57758.0,0.35870807]
[1725231228002,0.24256582,57764.0,57761.0,0.0115161]
[1725231228242,0.22664484,57764.0,57761.0,0.0115161]
[1725231228461,0.22664484,57764.0,57758.0,0.3471688]
[1725231228462,0.01592078,57763.0,57758.0,0.0008998]
[1725231228674,0.24911711,57763.0,57758.0,0.1740348]
[1725231228897,0.01592049,57762.0,57760.0,0.173128]
[1725231229120,0.173118,57764.0,57761.0,0.0115161]
[1725231229370,0.02716238,57765.0,57761.0,0.1846411]
[1725231229660,0.0159212,57764.0,57761.0,0.0115161]
[1725231230130,0.0159212,57764.0,57760.0,0.173129]
[1725231230358,0.0159212,57764.0,57762.0,0.01150837]
[1725231230816,0.1890392,57764.0,57760.0,0.173129]
[1725231231064,0.1599339,57770.0,57765.0,0.34623]
[1725231231304,0.1599339,57770.0,57763.0,0.01150065]
[1725231231305,0.005,57783.0,57763.0,0.01150065]
[1725231231306,0.2155,57781.0,57770.0,0.8655]
[1725231231538,0.1599339,57787.0,57770.0,0.8655]
[1725231231539,0.173066,57782.0,57770.0,0.8655]
[1725231231768,0.173072,57780.0,57770.0,0.8769466]
[1725231232007,0.1599339,57777.0,57770.0,0.1845466]
[1725231232247,0.173915,57771.0,57770.0,0.0114466]
[1725231232719,0.18983843,57771.0,57770.0,0.0114466]
[1725231232949,0.01674143,57771.0,57767.0,0.173108]
[1725231233183,0.173915,57771.0,57767.0,0.173108]
[1725231233435,0.173915,57771.0,57765.0,0.346227]
[1725231233436,0.01592319,57770.0,57765.0,0.346228]
[1725231233689,0.000818,57771.0,57768.0,0.01146204]
[1725231233920,0.01592256,57770.0,57767.0,0.173106]
[1725231234153,0.000818,57771.0,57769.0,0.01145432]
[1725231234365,0.01592245,57770.0,57768.0,0.01146204]
[1725231234589,0.000818,57771.0,57767.0,0.173106]
[1725231234804,0.01592238,57770.0,57767.0,0.173106]
[1725231235022,0.027977,57771.0,57767.0,0.173106]
[1725231235258,0.027977,57771.0,57765.0,0.346228]
[1725231235259,0.01592236,57770.0,57768.0,0.173105]
[1725231235498,0.027977,57771.0,57768.0,0.173105]
[1725231236011,0.027977,57771.0,57764.0,0.2199]
[1725231236265,0.027977,57771.0,57770.0,0.5193]
[1725231236266,0.000818,57771.0,57770.0,0.5193]
[1725231236726,0.000818,57771.0,57770.0,0.8769466]
[1725231236956,0.000818,57771.0,57770.0,0.5307466]
[1725231237190,0.000818,57771.0,57770.0,0.8769466]
[1725231237411,0.000818,57771.0,57770.0,0.5307466]
[1725231238121,0.000818,57771.0,57770.0,0.8769466]
[1725231238384,0.000818,57771.0,57770.0,0.0114466]
[1725231238631,0.184318,57771.0,57770.0,0.0114466]
[1725231238856,0.02797465,57771.0,57763.0,0.1878]
[1725231239091,0.02797465,57771.0,57767.0,0.346218]
[1725231239314,0.02797465,57771.0,57768.0,0.18456704]
[1725231240029,0.02797465,57771.0,57770.0,0.1731]
[1725231240246,0.02797465,57771.0,57770.0,1.0971]
[1725231240716,0.02797465,57771.0,57770.0,0.5307466]
[1725231241183,0.000818,57771.0,57770.0,0.5307466]
[1725231241398,0.1599339,57775.0,57770.0,0.0114466]
[1725231241612,0.1599339,57775.0,57771.0,0.173095]
[1725231241799,0.18183378,57775.0,57771.0,0.173095]
[1725231242037,0.18183378,57775.0,57772.0,0.01143115]
[1725231242721,0.35491878,57775.0,57772.0,0.01143115]
[1725231243375,0.18183378,57775.0,57772.0,0.01143115]
[1725231243622,0.02189988,57775.0,57772.0,0.01143115]
[1725231244070,0.02189988,57775.0,57771.0,0.173096]
[1725231244309,0.02189988,57775.0,57773.0,0.01142343]
[1725231244552,0.02715745,57775.0,57772.0,0.01143115]
[1725231244800,0.02715745,57775.0,57769.0,0.346205]
[1725231244801,0.173077,57778.0,57774.0,0.01141571]
[1725231245029,0.173079,57777.0,57773.0,0.18451243]
[1725231245270,0.173077,57778.0,57775.0,0.01140799]
[1725231245506,0.173074,57779.0,57775.0,0.173084]
[1725231245740,0.346135,57781.0,57772.0,0.346187]
[1725231245741,0.346139,57781.0,57772.0,0.346187]
[1725231245989,0.01592432,57780.0,57769.0,0.346205]
[1725231246227,0.346129,57782.0,57775.0,0.173083]
[1725231246449,0.02190058,57779.0,57775.0,0.34617]
[1725231246694,0.02190058,57779.0,57776.0,0.01140027]
[1725231246912,0.02190058,57779.0,57777.0,0.173076]
[1725231247131,0.02190058,57779.0,57776.0,0.18448127]
[1725231247352,0.02190058,57779.0,57778.0,0.01138484]
[1725231247577,0.02190058,57779.0,57777.0,0.01139256]
[1725231247833,0.02190058,57779.0,57778.0,0.01138484]
[1725231248266,0.02190058,57779.0,57776.0,0.173081]
[1725231248513,0.22212888,57779.0,57778.0,0.01138484]
[1725231248780,0.04905588,57779.0,57778.0,0.01138484]
[1725231249014,0.04905588,57779.0,57776.0,0.173081]
[1725231249242,0.04905588,57779.0,57778.0,0.01138484]
[1725231249484,0.04905588,57779.0,57777.0,0.01139256]
[1725231249741,0.0271553,57779.0,57778.0,0.01138484]
[1725231250013,0.173069,57781.0,57778.0,0.01138484]
[1725231250237,0.173069,57781.0,57773.0,0.34618]
[1725231250238,0.173069,57781.0,57775.0,0.173082]
[1725231250459,0.17307,57780.0,57776.0,0.173081]
[1725231250686,0.173073,57779.0,57776.0,0.01140027]
[1725231250911,0.34613,57782.0,57776.0,0.01140027]
[1725231251118,0.02190385,57778.0,57775.0,0.173084]
[1725231251337,0.02190385,57778.0,57777.0,0.01139256]
[1725231251815,0.02190385,57778.0,57775.0,0.173084]
[1725231252035,0.02190385,57778.0,57777.0,0.01139256]
[1725231252250,0.02190385,57778.0,57776.0,0.01140027]
[1725231252461,0.02190385,57778.0,57777.0,0.01139256]
[1725231253214,0.02190385,57778.0,57774.0,0.173085]
[1725231253442,0.02190385,57778.0,57777.0,0.01139256]
[1725231253676,0.02190385,57778.0,57774.0,0.173085]
[1725231253886,0.02190385,57778.0,57777.0,0.01139256]
[1725231254098,0.19497985,57778.0,57772.0,0.173093]
[1725231254309,0.19497985,57778.0,57777.0,0.01139256]
[1725231254557,0.4149,57787.0,57770.0,0.4092998]
[1725231254558,0.346124,57783.0,57770.0,0.4092998]
[1725231254782,0.17307,57780.0,57777.0,0.01139256]
[1725231255020,0.17307,57780.0,57775.0,0.173084]
[1725231255240,0.17307,57780.0,57778.0,0.01138484]
[1725231255490,0.17307,57780.0,57776.0,0.173081]
[1725231255737,0.346109,57786.0,57779.0,0.01137712]
[1725231255738,0.173059,57784.0,57779.0,0.01137712]
[1725231255966,0.346107,57786.0,57780.0,0.2125]
[1725231255967,0.173062,57783.0,57780.0,0.2125]
[1725231256204,0.173062,57783.0,57778.0,0.173075]
[1725231256452,0.173062,57783.0,57781.0,0.01136168]
[1725231256669,0.173062,57783.0,57778.0,0.173075]
[1725231256889,0.173062,57783.0,57779.0,0.173072]
[1725231257104,0.173064,57782.0,57779.0,0.01137712]
[1725231257336,0.346118,57784.0,57779.0,0.01137712]
[1725231257337,0.17306,57784.0,57779.0,0.01137712]
[1725231257778,0.173062,57783.0,57779.0,0.01137712]
[1725231258223,0.173022,57783.0,57779.0,0.18445012]
[1725231258460,0.0271544,57788.0,57781.0,0.34613]
[1725231258703,0.0271544,57788.0,57779.0,0.35752112]
[1725231258704,0.0001069,57800.0,57782.0,0.00346102]
[1725231258705,0.180019,57797.0,57782.0,0.00346102]
[1725231258923,0.180019,57797.0,57786.0,0.346103]
[1725231258924,0.01591607,57796.0,57786.0,0.346103]
[1725231259161,0.000819,57797.0,57783.0,0.2125]
[1725231259162,0.000819,57797.0,57787.0,0.00346064]
[1725231259382,0.000819,57797.0,57796.0,0.519066]
[1725231259623,0.000819,57797.0,57796.0,0.173022]
[1725231259859,0.000819,57797.0,57796.0,0.519066]
[1725231260294,0.000819,57797.0,57796.0,0.702866]
[1725231260296,0.000819,57797.0,57794.0,0.404626]
[1725231260498,0.1599339,57795.0,57786.0,0.173051]
[1725231260740,0.173035,57792.0,57786.0,0.18437409]
[1725231260972,0.17303,57794.0,57787.0,0.346096]
[1725231261196,0.17303,57794.0,57788.0,0.173046]
[1725231261457,0.17303,57794.0,57789.0,0.173043]
[1725231261691,0.1599339,57795.0,57790.0,0.173039]
[1725231261923,0.5060119,57791.0,57782.0,0.1838]
[1725231262168,0.5060119,57791.0,57777.0,0.346154]
[1725231262169,0.1599339,57786.0,57783.0,0.01134625]
[1725231262417,0.5096879,57786.0,57783.0,0.01134625]
[1725231262632,0.5096879,57786.0,57781.0,0.173066]
[1725231262861,0.02714876,57793.0,57771.0,0.351189]
[1725231262862,0.02714876,57793.0,57784.0,0.01133853]
[1725231263099,0.02714876,57793.0,57790.0,0.173039]
[1725231263325,0.02714876,57793.0,57792.0,0.173034]
[1725231264242,0.02714876,57793.0,57792.0,0.519102]
[1725231264481,0.000819,57797.0,57796.0,0.519066]
[1725231266331,0.000819,57797.0,57796.0,0.86511]
[1725231267288,0.000819,57797.0,57796.0,1.09671]
[1725231268658,0.000819,57797.0,57796.0,0.86511]
[1725231272828,0.000819,57797.0,57791.0,0.346073]
[1725231272829,0.177519,57797.0,57791.0,0.346073]
[1725231273057,0.177519,57797.0,57787.0,0.1838]
[1725231273058,0.177519,57797.0,57795.0,0.173024]
[1725231273263,0.177519,57797.0,57783.0,0.0083458]
[1725231273264,0.3956339,57796.0,57780.0,0.5154]
[1725231273474,0.3956339,57796.0,57776.0,0.346163]
[1725231273475,0.1599339,57786.0,57781.0,0.01136168]
[1725231273688,0.1599339,57786.0,57776.0,0.4154]
[1725231273689,0.1599339,57782.0,57776.0,0.761561]
[1725231273922,0.1767,57787.0,57781.0,0.173064]
[1725231273923,0.584,57784.0,57781.0,0.173064]
[1725231274170,0.584,57784.0,57782.0,0.01135396]
[1725231274426,0.584,57784.0,57781.0,0.173064]
[1725231274672,0.584,57784.0,57782.0,0.01135396]
[1725231274905,0.584,57784.0,57782.0,0.173064]
[1725231275129,0.173058,57784.0,57783.0,0.01134625]
[1725231275354,0.173073,57779.0,57774.0,0.173087]
[1725231275560,0.3330069,57779.0,57774.0,0.173087]
[1725231277408,0.3330069,57779.0,57770.0,0.3470958]
[1725231277409,1.09592858,57779.0,57770.0,0.0008998]
[1725231277608,0.6791529,57779.0,57771.0,0.173095]
[1725231278065,0.6791529,57779.0,57770.0,0.0008998]
[1725231278066,1.0252989,57779.0,57770.0,0.0008998]
[1725231278319,1.0751529,57779.0,57770.0,0.0008998]
[1725231278570,1.4212989,57779.0,57770.0,0.0008998]
[1725231279486,1.7674449,57779.0,57770.0,0.0008998]
[1725231279700,1.78336333,57779.0,57770.0,0.0008998]
[1725231279909,1.79609788,57779.0,57770.0,0.0008998]
[1725231280141,2.38009788,57779.0,57770.0,0.0008998]
[1725231280361,2.38209788,57779.0,57770.0,0.0008998]
[1725231280577,3.91781052,57779.0,57770.0,0.0008998]
[1725231280794,3.84661555,57779.0,57770.0,0.0008998]
[1725231281567,3.04785655,57779.0,57770.0,0.0008998]
[1725231281770,3.73262055,57779.0,57770.0,0.0008998]
[1725231282019,3.53879255,57779.0,57770.0,0.0008998]
[1725231282233,3.52573152,57779.0,57770.0,0.0008998]
[1725231282689,2.48009788,57779.0,57770.0,0.0008998]
[1725231283343,2.1052989,57779.0,57770.0,0.0008998]
[1725231285397,1.5387529,57779.0,57770.0,0.0008998]
[1725231285630,1.103219,57779.0,57774.0,0.1781]
[1725231285896,1.2631529,57779.0,57774.0,0.1781]
[1725231286119,1.2631529,57779.0,57778.0,0.01228464]
[1725231286336,1.2631529,57779.0,57778.0,0.0008998]
[1725231286544,1.29030951,57779.0,57778.0,0.01228464]
[1725231286751,0.61115661,57779.0,57778.0,0.01228464]
[1725231287589,0.584,57779.0,57778.0,0.01228464]
[1725231288523,0.584,57779.0,57778.0,0.18536064]
[1725231288735,0.02715554,57780.0,57778.0,0.18536064]
[1725231288946,0.02715554,57780.0,57779.0,0.173073]
[1725231289162,0.28835554,57780.0,57779.0,0.53059612]
[1725231289392,0.28835554,57780.0,57779.0,0.87674212]
[1725231289618,0.28835554,57780.0,57779.0,1.26834212]
[1725231289864,0.2612,57780.0,57779.0,1.26834212]
[1725231291228,0.2612,57780.0,57779.0,1.26334212]
[1725231292583,0.25906112,57782.0,57781.0,0.519201]
[1725231292813,0.25906112,57782.0,57781.0,0.53056268]
[1725231294822,0.25906112,57782.0,57781.0,0.18442868]
[1725231295717,0.66016112,57782.0,57781.0,0.01136168]
[1725231295957,0.43126112,57782.0,57781.0,0.01136168]
[1725231296167,0.43126112,57782.0,57779.0,0.173072]
[1725231296168,0.25906112,57782.0,57779.0,0.173072]
[1725231296401,0.25906112,57782.0,57778.0,0.0008998]
[1725231296402,0.25906112,57782.0,57781.0,0.173067]
[1725231296827,0.25906112,57782.0,57781.0,0.53056268]
[1725231297041,0.25906112,57782.0,57781.0,0.18442868]
[1725231298693,0.25686112,57782.0,57781.0,0.18442868]
[1725231300165,0.25686112,57782.0,57781.0,0.01136168]
[1725231300166,0.173064,57782.0,57781.0,0.01136168]
[1725231300418,0.173064,57782.0,57778.0,0.0008998]
[1725231300419,0.173073,57779.0,57778.0,0.0008998]
[1725231300665,0.173073,57779.0,57762.0,0.1876]
[1725231300666,0.1599339,57773.0,57762.0,0.1876]
[1725231300912,0.1599339,57773.0,57766.0,0.173109]
[1725231300913,0.1731,57770.0,57766.0,0.173109]
[1725231301156,0.1731,57770.0,57766.0,0.173111]
[1725231301402,0.1731,57770.0,57767.0,0.01146976]
[1725231301645,0.1731,57770.0,57766.0,0.173112]
[1725231301897,0.173119,57764.0,57755.0,0.1884998]
[1725231302139,0.173119,57764.0,57759.0,0.173132]
[1725231302395,0.173119,57764.0,57755.0,0.0008998]
[1725231302396,0.1795,57759.0,57755.0,0.0008998]
[1725231302639,0.390633,57759.0,57755.0,0.0008998]
[1725231303124,1.083165,57759.0,57755.0,0.0008998]
[1725231303375,1.25171664,57759.0,57755.0,0.0008998]
[1725231303856,1.59798264,57759.0,57755.0,0.0008998]
[1725231304123,1.59998264,57759.0,57755.0,0.0008998]
[1725231304361,1.83118264,57759.0,57755.0,0.0008998]
[1725231304602,1.92918264,57759.0,57755.0,0.0008998]
[1725231304837,1.95835186,57759.0,57755.0,0.0008998]
[1725231305074,1.93118264,57759.0,57755.0,0.0008998]
[1725231305552,2.17830464,57759.0,57755.0,0.0008998]
[1725231305794,2.52757064,57759.0,57755.0,0.0008998]
[1725231306021,2.56562821,57759.0,57755.0,0.0008998]
[1725231306255,2.56257064,57759.0,57755.0,0.0008998]
[1725231306683,1.975978,57756.0,57755.0,0.0008998]
[1725231306935,2.57981371,57756.0,57755.0,0.0008998]
[1725231307149,2.0810319,57756.0,57755.0,0.0008998]
[1725231307406,2.0810319,57756.0,57751.0,0.0004]
[1725231307407,0.526462,57752.0,57751.0,0.0004]
[1725231307618,1.8863049,57752.0,57751.0,0.0004]
[1725231307836,2.8253535,57752.0,57751.0,0.0004]
[1725231308070,2.7074685,57752.0,57751.0,0.0004]
[1725231308293,2.38979054,57752.0,57751.0,0.0004]
[1725231308510,2.36291054,57752.0,57751.0,0.0004]
[1725231308734,2.29348254,57752.0,57751.0,0.0004]
[1725231308953,2.0856599,57752.0,57751.0,0.0004]
[1725231309205,1.219099,57751.0,57750.0,0.008398]
[1725231309426,1.600631,57751.0,57750.0,0.008398]
[1725231309878,1.497231,57751.0,57750.0,0.008398]
[1725231310394,1.352099,57751.0,57750.0,0.008398]
[1725231310636,1.87276653,57751.0,57750.0,0.008398]
[1725231310872,1.350099,57751.0,57750.0,0.008398]
[1725231311322,1.352099,57751.0,57750.0,0.008398]
[1725231311562,1.003785,57751.0,57750.0,0.008398]
[1725231311785,1.350099,57751.0,57750.0,0.008398]
[1725231312038,2.47882264,57751.0,57750.0,0.008398]
[1725231312274,2.7404539,57751.0,57750.0,0.008398]
[1725231313189,2.7404539,57751.0,57731.0,0.009409]
[1725231313190,1.214309,57741.0,57731.0,0.009409]
[1725231313400,2.2644689,57741.0,57731.0,0.009409]
[1725231313639,2.53302054,57741.0,57731.0,0.009409]
[1725231313877,0.86607,57732.0,57731.0,0.009409]
[1725231314128,1.0280039,57732.0,57731.0,0.009409]
[1725231314376,1.7758319,57732.0,57731.0,0.009409]
[1725231314607,1.94238354,57732.0,57731.0,0.009409]
[1725231315062,1.9715636,57732.0,57731.0,0.009409]
[1725231315294,1.94438354,57732.0,57731.0,0.009409]
[1725231315733,2.04438354,57732.0,57731.0,0.009409]
[1725231315978,2.08238354,57732.0,57731.0,0.009409]
[1725231318271,2.10956433,57732.0,57731.0,0.009409]
[1725231318489,2.69768833,57732.0,57731.0,0.009409]
[1725231318708,2.67763233,57732.0,57731.0,0.009409]
[1725231318932,2.30940433,57732.0,57731.0,0.009409]
[1725231319387,2.49170433,57732.0,57731.0,0.009409]
[1725231319601,2.30940433,57732.0,57731.0,0.009409]
[1725231320516,2.67883233,57732.0,57731.0,0.009409]
[1725231320743,2.65165154,57732.0,57731.0,0.009409]
[1725231320970,1.3726419,57722.0,57721.0,0.008998]
[1725231321199,1.54484876,57722.0,57721.0,0.008998]
[1725231321432,1.71924876,57722.0,57721.0,0.008998]
[1725231321945,2.18447276,57722.0,57721.0,0.008998]
[1725231322427,2.55896076,57722.0,57721.0,0.008998]
[1725231323136,2.21247276,57722.0,57721.0,0.008998]
[1725231323355,2.3375029,57722.0,57721.0,0.008998]
[1725231323568,2.29889711,57722.0,57721.0,0.008998]